Workbook

Sheet Map Mauritius
B2: Choropleth Map of Mauritius
N6: Area
M7: Pamplemousses | N7: 179.7
M8: Riviere du Rempart | N8: 146.8
M9: Flacq | N9: 297.5
M10: Grand Port | N10: 260.6
M11: Savanne | N11: 246.9
M12: Black River | N12: 254.6
M13: Port Louis | N13: 39.7
M14: Moka | N14: 234.3
M15: Plaines Wilhems | N15: 197.6

Sheet DataDistrict
B2: Data
B4: Indicators | C4: Pamplemousses | D4: Riviere du Rempart | E4: Flacq | F4: Grand Port | G4: Savanne | H4: Black River | I4: Port Louis | J4: Moka | K4: Plaines Wilhems | L4: Mauritius (Average) | M4: Min Scale | N4: Max Scale | O4: Definitions of Indicators
B5: Hazard | C5: 8508695.513 | D5: 2035910.062 | E5: 241841747.3 | F5: 71238253.27 | G5: 13236115.83 | H5: 85286402.36 | I5: 21064188.88 | J5: 31489271.71 | K5: 41490318.7 | L5: =IF(B5="","",AVERAGE(C5:K5)) -> 57354544.84 | M5: =IF(B5="","",MIN(C5:K5)) -> 2035910.062 | N5: =IF(B5="","",MAX(C5:K5)) -> 241841747.3 | O5: Hazard prone area, m2 (flood risk)
B6: Hazkm2 | C6: 8.508695513 | D6: 2.035910062 | E6: 241.8417473 | F6: 71.23825327 | G6: 13.23611583 | H6: 85.28640236 | I6: 21.06418888 | J6: 31.48927171 | K6: 41.4903187 | L6: =IF(B6="","",AVERAGE(C6:K6)) -> 57.35454484 | M6: =IF(B6="","",MIN(C6:K6)) -> 2.035910062 | N6: =IF(B6="","",MAX(C6:K6)) -> 241.8417473 | O6: Hazard prone area, km2 (flood risk)
B7: Area | C7: 179.7 | D7: 146.8 | E7: 297.5 | F7: 260.6 | G7: 246.9 | H7: 254.6 | I7: 39.7 | J7: 234.3 | K7: 197.6 | L7: 206.4111111 | M7: 39.7 | N7: 297.5 | O7: Area of district
B8: Pop16 | C8: 140279 | D8: 108042 | E8: 138543 | F8: 112985 | G8: 68547 | H8: 81359 | I8: 119554 | J8: 83346 | K8: 368558 | L8: 135690.3333 | M8: 68547 | N8: 368558 | O8: Population of district as of 2016
B9: Hzprop | C9: =C6/C7 -> 0.04734944637 | D9: 0.01386859715 | E9: 0.8129134362 | F9: 0.2733624454 | G9: 0.05360921761 | H9: 0.3349819417 | I9: 0.5305841028 | J9: 0.1343972331 | K9: 0.2099712485 | L9: 0.2678930743 | M9: 0.01386859715 | N9: 0.8129134362 | O9: Proportion of area at risk (hazard area/area of district)
B10: PopDen | C10: =C8/C7 -> 780.6288258 | D10: =D8/D7 -> 735.9809264 | E10: 465.6907563 | F10: 433.5571757 | G10: 277.6306197 | H10: 319.5561665 | I10: 3011.435768 | J10: 355.7234315 | K10: 1865.172065 | L10: 916.1528595 | M10: 277.6306197 | N10: 3011.435768 | O10: Population density based on 2016 population
B11: Vulpop | C11: =C8/C6 -> 16486.546 | D11: =D8/D6 -> 53068.15955 | E11: 572.866354 | F11: 1586.015867 | G11: 5178.785143 | H11: 953.9504276 | I11: 5675.699201 | J11: 2646.806213 | K11: 8882.987925 | L11: 2365.816584 | M11: 572.866354 | N11: 53068.15955 | O11: Vulnerable population (population per hazard area = proportion of area at risk x 1/population density) OR Pop of district/hazard area
B12: VulHazIndx | C12: 9.467474266 | D12: 8.925984092 | E12: 5.647902185 | F12: 5.258185796 | G12: 3.367106953 | H12: 3.875580408 | I12: 36.52272334 | J12: 4.314217362 | K12: 22.6208256 | L12: 11.11111111 | M12: 3.367106953 | N12: 36.52272334 | O12: Index = density weighted value for each district (population density x proportion of total population at risk (out of total population of country))/sum on density weighted value for whole country x 100
L70: =IF(B70="","",AVERAGE(C70:K70)) ->  | M70: =IF(B70="","",MIN(C70:K70)) ->  | N70: =IF(B70="","",MAX(C70:K70)) -> 
L134: =IF(B134="","",AVERAGE(C134:K134)) ->  | M134: =IF(B134="","",MIN(C134:K134)) ->  | N134: =IF(B134="","",MAX(C134:K134)) -> 
L198: =IF(B198="","",AVERAGE(C198:K198)) ->  | M198: =IF(B198="","",MIN(C198:K198)) ->  | N198: =IF(B198="","",MAX(C198:K198)) -> 
L262: =IF(B262="","",AVERAGE(C262:K262)) ->  | M262: =IF(B262="","",MIN(C262:K262)) ->  | N262: =IF(B262="","",MAX(C262:K262)) -> 
L326: =IF(B326="","",AVERAGE(C326:K326)) ->  | M326: =IF(B326="","",MIN(C326:K326)) ->  | N326: =IF(B326="","",MAX(C326:K326)) -> 
L390: =IF(B390="","",AVERAGE(C390:K390)) ->  | M390: =IF(B390="","",MIN(C390:K390)) ->  | N390: =IF(B390="","",MAX(C390:K390)) -> 
L454: =IF(B454="","",AVERAGE(C454:K454)) ->  | M454: =IF(B454="","",MIN(C454:K454)) ->  | N454: =IF(B454="","",MAX(C454:K454)) -> 
L518: =IF(B518="","",AVERAGE(C518:K518)) ->  | M518: =IF(B518="","",MIN(C518:K518)) ->  | N518: =IF(B518="","",MAX(C518:K518)) -> 
L582: =IF(B582="","",AVERAGE(C582:K582)) ->  | M582: =IF(B582="","",MIN(C582:K582)) ->  | N582: =IF(B582="","",MAX(C582:K582)) -> 
L646: =IF(B646="","",AVERAGE(C646:K646)) ->  | M646: =IF(B646="","",MIN(C646:K646)) ->  | N646: =IF(B646="","",MAX(C646:K646)) -> 
L710: =IF(B710="","",AVERAGE(C710:K710)) -> 
L774: =IF(B774="","",AVERAGE(C774:K774)) -> 

Sheet Control (hidden)
C2: Control
C5: Selection | D5: 3 | K5: D_Pam1 | L5: D_Riv1 | M5: D_Fla1 | N5: D_Gra1 | O5: D_Sav1 | P5: D_Bla1 | Q5: D_Por1 | R5: D_Mok1 | S5: D_Pla1 | T5: D_Isl
J6: Selection | K6: 179.7 | L6: 146.8 | M6: 297.5 | N6: 260.6 | O6: 246.9 | P6: 254.6 | Q6: 39.7 | R6: 234.3 | S6: 197.6 | T6: =IF(J6="","",AVERAGE(K6:S6)) -> 206.4111111 | U6: =IF(J6="","",MIN(K6:S6)) -> 39.7 | V6: =IF(J6="","",MAX(K6:S6)) -> 297.5
C7: Darkness | D7: 5 | E7: the smaller the darker (max: 5,21)
C9: Steps | D9: Threshold | E9: RGB | F9: Min / Max
C10: =C11+$D$7 -> 245 | D10: =F11 -> 39.7 | E10: =udf_RGB(C10,C10,C10) -> 16119285 | F10: 297.5
C11: 240 | D11: =D10+$F$12 -> 45.07083333 | E11: =udf_RGB(C11,C11,C11) -> 15790320 | F11: 39.7
C12: 235 | D12: =D11+$F$12 -> 50.44166667 | E12: =udf_RGB(C12,C12,C12) -> 15461355 | F12: =(F10-F11)/(COUNT($C$10:$C$59)-2) -> 5.370833333
C13: 230 | D13: 55.8125 | E13: 15132390
C14: 225 | D14: 61.18333333 | E14: 14803425
C15: 220 | D15: 66.55416667 | E15: 14474460
C16: 215 | D16: 71.925 | E16: 14145495
C17: 210 | D17: 77.29583333 | E17: 13816530
C18: 205 | D18: 82.66666667 | E18: 13487565
C19: 200 | D19: 88.0375 | E19: 13158600
C20: 195 | D20: 93.40833333 | E20: 12829635
C21: 190 | D21: 98.77916667 | E21: 12500670
C22: 185 | D22: 104.15 | E22: 12171705
C23: 180 | D23: 109.5208333 | E23: 11842740
C24: 175 | D24: 114.8916667 | E24: 11513775
C25: 170 | D25: 120.2625 | E25: 11184810
C26: 165 | D26: 125.6333333 | E26: 10855845
C27: 160 | D27: 131.0041667 | E27: 10526880
C28: 155 | D28: 136.375 | E28: 10197915
C29: 150 | D29: 141.7458333 | E29: 9868950
C30: 145 | D30: 147.1166667 | E30: 9539985
C31: 140 | D31: 152.4875 | E31: 9211020
C32: 135 | D32: 157.8583333 | E32: 8882055
C33: 130 | D33: 163.2291667 | E33: 8553090
C34: 125 | D34: 168.6 | E34: 8224125
C35: 120 | D35: 173.9708333 | E35: 7895160
C36: 115 | D36: 179.3416667 | E36: 7566195
C37: 110 | D37: 184.7125 | E37: 7237230
C38: 105 | D38: 190.0833333 | E38: 6908265
C39: 100 | D39: 195.4541667 | E39: 6579300
C40: 95 | D40: 200.825 | E40: 6250335
C41: 90 | D41: 206.1958333 | E41: 5921370
C42: 85 | D42: 211.5666667 | E42: 5592405
C43: 80 | D43: =D42+$F$12 -> 216.9375 | E43: 5263440
C44: 75 | D44: 222.3083333 | E44: 4934475
C45: 70 | D45: 227.6791667 | E45: 4605510
C46: 65 | D46: 233.05 | E46: 4276545
C47: 60 | D47: 238.4208333 | E47: 3947580
C48: 55 | D48: 243.7916667 | E48: 3618615
C49: 50 | D49: 249.1625 | E49: 3289650
C50: 45 | D50: 254.5333333 | E50: 2960685
C51: 40 | D51: 259.9041667 | E51: 2631720
C52: 35 | D52: 265.275 | E52: 2302755
C53: 30 | D53: 270.6458333 | E53: 1973790
C54: 25 | D54: 276.0166667 | E54: 1644825
C55: 20 | D55: 281.3875 | E55: 1315860
C56: 15 | D56: 286.7583333 | E56: 986895
C57: 10 | D57: 292.1291667 | E57: 657930
C58: =C59+$D$7 -> 5 | D58: 297.5 | E58: 328965
C59: 0 | D59: 302.8708333 | E59: 0
C61: Name | D61: Autoshape
C62: D_Pam | D62: Pam
C63: D_Riv | D63: Riv
C64: D_Fla | D64: Fla
C65: D_Gra | D65: Gra
C66: D_Sav | D66: Sav
C67: D_Bla | D67: Bla
C68: D_Por | D68: Por
C69: D_Mok | D69: Mok
C70: D_Pla | D70: Pla
